[Event "MČR v bleskovém šachu družstev 2019"]
[Site "Teplice, Czech Republic"]
[Date "2019.09.14"]
[Round "13.10"]
[White "Hacha, Ales"]
[Black "Studnicka, Tomas"]
[Result "1/2-1/2"]
[TimeControl "3 mim. + 2 s"]
[BlackTitle "IM"]
[WhiteElo "2065"]
[BlackElo "2215"]

1. e4 {[%clk 00:03:02]} {[%emt 00:00:02]} c5 {[%clk 00:03:03]} {[%emt
00:00:02]} 2. Nf3 {[%clk 00:03:03]} Nc6 {[%clk 00:03:04]} {[%emt 00:00:01]} 3.
g3 {[%clk 00:03:04]} {[%emt 00:00:02]} g6 {[%clk 00:03:04]} {[%emt 00:00:01]} 4.
Bg2 {[%clk 00:03:05]} {[%emt 00:00:01]} Bg7 {[%clk 00:03:05]} 5. O-O {[%clk
00:03:05]} {[%emt 00:00:01]} d6 {[%clk 00:03:06]} {[%emt 00:00:01]} 6. c3
{[%clk 00:03:06]} {[%emt 00:00:02]} Bd7 {[%clk 00:03:02]} {[%emt 00:00:06]} 7.
d4 {[%clk 00:03:07]} {[%emt 00:00:02]} Qc8 {[%clk 00:02:48]} {[%emt 00:00:16]}
8. Re1 {[%clk 00:03:07]} {[%emt 00:00:02]} Bh3 {[%clk 00:02:26]} {[%emt
00:00:23]} 9. Bh1 {[%clk 00:03:07]} {[%emt 00:00:01]} Bg4 {[%clk 00:02:25]}
{[%emt 00:00:03]} 10. Qa4 {[%clk 00:02:45]} {[%emt 00:00:23]} a6 {[%clk
00:02:11]} {[%emt 00:00:16]} 11. d5 {[%clk 00:02:33]} {[%emt 00:00:14]} b5
{[%clk 00:02:09]} {[%emt 00:00:04]} 12. Qc2 {[%clk 00:02:33]} {[%emt 00:00:02]}
Nd8 {[%clk 00:01:46]} {[%emt 00:00:25]} 13. Bf4 {[%clk 00:02:14]} {[%emt
00:00:21]} f6 {[%clk 00:01:42]} {[%emt 00:00:06]} 14. Nbd2 {[%clk 00:02:09]}
{[%emt 00:00:07]} Nh6 {[%clk 00:01:42]} {[%emt 00:00:03]} 15. a4 {[%clk
00:01:56]} {[%emt 00:00:15]} O-O {[%clk 00:01:37]} {[%emt 00:00:07]} 16. Nf1
{[%clk 00:01:50]} {[%emt 00:00:08]} Nhf7 {[%clk 00:01:33]} {[%emt 00:00:06]} 17.
Ne3 {[%clk 00:01:49]} {[%emt 00:00:03]} Bd7 {[%clk 00:01:32]} {[%emt 00:00:02]}
18. h4 {[%clk 00:01:42]} {[%emt 00:00:10]} bxa4 {[%clk 00:01:08]} {[%emt
00:00:26]} 19. Nc4 {[%clk 00:01:08]} {[%emt 00:00:36]} Ne5 {[%clk 00:01:07]}
{[%emt 00:00:03]} 20. Nb6 {[%clk 00:01:08]} {[%emt 00:00:02]} Qb7 {[%clk
00:01:04]} {[%emt 00:00:04]} 21. Nxa8 {[%clk 00:01:09]} {[%emt 00:00:02]} Qxa8
{[%clk 00:01:05]} {[%emt 00:00:01]} 22. Nxe5 {[%clk 00:01:08]} {[%emt
00:00:03]} fxe5 {[%clk 00:01:05]} {[%emt 00:00:02]} 23. Bg5 {[%clk 00:01:09]}
{[%emt 00:00:02]} Rf7 {[%clk 00:01:04]} {[%emt 00:00:02]} 24. Bg2 {[%clk
00:01:02]} {[%emt 00:00:09]} Nb7 {[%clk 00:00:59]} {[%emt 00:00:06]} 25. Kh2
{[%clk 00:01:00]} {[%emt 00:00:05]} Na5 {[%clk 00:00:56]} {[%emt 00:00:04]} 26.
Rxa4 {[%clk 00:00:50]} {[%emt 00:00:13]} Bxa4 {[%clk 00:00:50]} {[%emt
00:00:08]} 27. Qxa4 {[%clk 00:00:51]} Nb7 {[%clk 00:00:43]} {[%emt 00:00:10]}
28. Be3 {[%clk 00:00:52]} a5 {[%clk 00:00:33]} {[%emt 00:00:12]} 29. Bh3 {[%clk
00:00:53]} Rf8 {[%clk 00:00:30]} {[%emt 00:00:05]} 30. Ra1 {[%clk 00:00:53]}
{[%emt 00:00:02]} Qb8 {[%clk 00:00:30]} {[%emt 00:00:01]} 31. Bd7 {[%clk
00:00:52]} {[%emt 00:00:04]} Qc7 {[%clk 00:00:29]} {[%emt 00:00:02]} 32. Bc6
{[%clk 00:00:54]} {[%emt 00:00:01]} Rb8 {[%clk 00:00:30]} 33. Bxb7 {[%clk
00:00:49]} {[%emt 00:00:06]} Rxb7 {[%clk 00:00:27]} {[%emt 00:00:05]} 34. Qxa5
{[%clk 00:00:50]} {[%emt 00:00:02]} Qxa5 {[%clk 00:00:28]} 35. Rxa5 {[%clk
00:00:51]} {[%emt 00:00:01]} Rxb2 {[%clk 00:00:29]} {[%emt 00:00:01]} 36. Ra8+
{[%clk 00:00:49]} {[%emt 00:00:04]} Kf7 {[%clk 00:00:30]} {[%emt 00:00:01]} 37.
Ra7 {[%clk 00:00:48]} {[%emt 00:00:03]} Bf6 {[%clk 00:00:31]} {[%emt 00:00:01]}
38. Kg2 {[%clk 00:00:44]} {[%emt 00:00:06]} Rc2 {[%clk 00:00:30]} {[%emt
00:00:02]} 39. Ra3 {[%clk 00:00:45]} {[%emt 00:00:01]} Kg7 {[%clk 00:00:29]}
{[%emt 00:00:04]} 40. Kf3 {[%clk 00:00:46]} {[%emt 00:00:01]} h6 {[%clk
00:00:30]} 41. Rb3 {[%clk 00:00:44]} {[%emt 00:00:04]} h5 {[%clk 00:00:26]}
{[%emt 00:00:05]} 1/2-1/2

[Event "MČR v bleskovém šachu družstev 2019"]
[Site "Teplice, Czech Republic"]
[Date "2019.09.14"]
[Round "13.11"]
[White "Cech, Pavel"]
[Black "Zima, Jan"]
[Result "1-0"]
[TimeControl "3 mim. + 2 s"]
[WhiteTitle "IM"]
[WhiteElo "2387"]
[BlackElo "2048"]

1. e4 {[%clk 00:03:02]} {[%emt 00:00:01]} c5 {[%clk 00:03:03]} {[%emt
00:00:01]} 2. Nf3 {[%clk 00:03:03]} {[%emt 00:00:02]} d6 {[%clk 00:03:05]} 3.
Bb5+ {[%clk 00:03:04]} {[%emt 00:00:01]} Bd7 {[%clk 00:03:06]} 4. c4 {[%clk
00:03:05]} Nc6 {[%clk 00:03:05]} {[%emt 00:00:03]} 5. O-O {[%clk 00:03:04]}
{[%emt 00:00:04]} Nf6 {[%clk 00:03:05]} {[%emt 00:00:01]} 6. Nc3 {[%clk
00:03:05]} {[%emt 00:00:01]} g6 {[%clk 00:03:04]} {[%emt 00:00:03]} 7. d4
{[%clk 00:03:05]} {[%emt 00:00:01]} cxd4 8. Nxd4 {[%clk 00:03:06]} Bg7 {[%clk
00:03:04]} {[%emt 00:00:03]} 9. h3 {[%clk 00:03:06]} {[%emt 00:00:02]} O-O
{[%clk 00:02:57]} {[%emt 00:00:08]} 10. Be3 {[%clk 00:03:07]} a6 {[%clk
00:02:58]} {[%emt 00:00:02]} 11. Bxc6 {[%clk 00:02:59]} {[%emt 00:00:10]} Bxc6
{[%clk 00:02:43]} {[%emt 00:00:17]} 12. Nxc6 {[%clk 00:02:54]} {[%emt
00:00:07]} bxc6 {[%clk 00:02:44]} {[%emt 00:00:01]} 13. Qd2 {[%clk 00:02:51]}
{[%emt 00:00:04]} Qc7 {[%clk 00:02:33]} {[%emt 00:00:14]} 14. Bh6 {[%clk
00:02:38]} {[%emt 00:00:14]} Rfe8 {[%clk 00:02:07]} {[%emt 00:00:29]} 15. Bxg7
{[%clk 00:02:38]} {[%emt 00:00:02]} Kxg7 {[%clk 00:02:07]} {[%emt 00:00:01]} 16.
f4 {[%clk 00:02:32]} {[%emt 00:00:08]} Rab8 {[%clk 00:02:06]} {[%emt 00:00:03]}
17. b3 {[%clk 00:02:32]} Qa5 {[%clk 00:02:03]} {[%emt 00:00:06]} 18. Rae1
{[%clk 00:02:23]} {[%emt 00:00:11]} Rbd8 {[%clk 00:01:58]} {[%emt 00:00:07]} 19.
Qb2 {[%clk 00:02:06]} {[%emt 00:00:18]} e5 {[%clk 00:01:51]} {[%emt 00:00:09]}
20. f5 {[%clk 00:01:42]} {[%emt 00:00:26]} d5 {[%clk 00:01:15]} {[%emt
00:00:39]} 21. exd5 {[%clk 00:01:29]} {[%emt 00:00:15]} cxd5 {[%clk 00:01:16]}
{[%emt 00:00:01]} 22. fxg6 {[%clk 00:01:25]} {[%emt 00:00:05]} fxg6 {[%clk
00:01:09]} {[%emt 00:00:09]} 23. Rxf6 {[%clk 00:00:51]} {[%emt 00:00:37]} Kxf6
{[%clk 00:01:10]} {[%emt 00:00:01]} 24. Nxd5+ {[%clk 00:00:51]} {[%emt
00:00:01]} Rxd5 {[%clk 00:01:11]} {[%emt 00:00:01]} 25. cxd5 {[%clk 00:00:51]}
{[%emt 00:00:02]} Qxd5 {[%clk 00:00:30]} {[%emt 00:00:43]} 26. Kh1 {[%clk
00:00:45]} {[%emt 00:00:08]} Kg7 {[%clk 00:00:25]} {[%emt 00:00:08]} 27. Qe2
{[%clk 00:00:31]} {[%emt 00:00:15]} Qd6 {[%clk 00:00:23]} {[%emt 00:00:04]} 28.
Qe4 {[%clk 00:00:21]} {[%emt 00:00:12]} Re7 {[%clk 00:00:23]} {[%emt 00:00:02]}
29. Kh2 {[%clk 00:00:16]} {[%emt 00:00:07]} Qd2 {[%clk 00:00:19]} {[%emt
00:00:07]} 30. Re2 {[%clk 00:00:17]} {[%emt 00:00:01]} Qd6 {[%clk 00:00:18]}
{[%emt 00:00:02]} 31. Rc2 {[%clk 00:00:16]} {[%emt 00:00:02]} Qd4 {[%clk
00:00:14]} {[%emt 00:00:06]} 32. Re2 {[%clk 00:00:09]} {[%emt 00:00:09]} Qxe4
{[%clk 00:00:13]} {[%emt 00:00:03]} 33. Rxe4 {[%clk 00:00:10]} {[%emt
00:00:01]} Kf6 {[%clk 00:00:15]} 34. Kg3 {[%clk 00:00:09]} {[%emt 00:00:03]}
Rc7 {[%clk 00:00:14]} {[%emt 00:00:03]} 35. Ra4 {[%clk 00:00:09]} {[%emt
00:00:02]} Rc6 {[%clk 00:00:15]} 36. Kf3 {[%clk 00:00:10]} {[%emt 00:00:01]}
Kf5 {[%clk 00:00:16]} {[%emt 00:00:01]} 37. g4+ {[%clk 00:00:11]} {[%emt
00:00:01]} Ke6 {[%clk 00:00:15]} {[%emt 00:00:03]} 38. Ke4 {[%clk 00:00:11]}
{[%emt 00:00:02]} Kd6 {[%clk 00:00:11]} {[%emt 00:00:06]} 39. Ra5 {[%clk
00:00:11]} {[%emt 00:00:03]} Rb6 {[%clk 00:00:09]} {[%emt 00:00:04]} 40. Rd5+
{[%clk 00:00:10]} {[%emt 00:00:03]} Ke6 {[%clk 00:00:05]} {[%emt 00:00:06]} 41.
Rxe5+ {[%clk 00:00:11]} {[%emt 00:00:01]} Kf6 {[%clk 00:00:07]} 42. Ra5 {[%clk
00:00:12]} {[%emt 00:00:01]} Ke6 {[%clk 00:00:06]} {[%emt 00:00:02]} 43. g5
{[%clk 00:00:12]} {[%emt 00:00:01]} Kd6 {[%clk 00:00:06]} {[%emt 00:00:03]} 44.
Kd4 {[%clk 00:00:12]} {[%emt 00:00:02]} Kc6 {[%clk 00:00:04]} {[%emt 00:00:04]}
45. Ke5 {[%clk 00:00:13]} {[%emt 00:00:02]} Kd7 {[%clk 00:00:03]} {[%emt
00:00:03]} 46. Rd5+ {[%clk 00:00:14]} {[%emt 00:00:01]} Ke7 {[%clk 00:00:05]}
47. Rc5 {[%clk 00:00:15]} {[%emt 00:00:01]} Kd7 {[%clk 00:00:05]} {[%emt
00:00:01]} 48. h4 {[%clk 00:00:15]} {[%emt 00:00:03]} Re6+ {[%clk 00:00:05]}
{[%emt 00:00:02]} 49. Kd5 {[%clk 00:00:15]} {[%emt 00:00:01]} Rd6+ {[%clk
00:00:06]} {[%emt 00:00:01]} 50. Ke5 {[%clk 00:00:16]} {[%emt 00:00:01]} Rd2
{[%clk 00:00:05]} {[%emt 00:00:03]} 51. Rd5+ {[%clk 00:00:17]} {[%emt
00:00:01]} 1-0

[Event "MČR v bleskovém šachu družstev 2019"]
[Site "Teplice, Czech Republic"]
[Date "2019.09.14"]
[Round "13.12"]
[White "Broucek, Tomas"]
[Black "Sodoma, Jan"]
[Result "0-1"]
[TimeControl "3 mim. + 2 s"]
[BlackTitle "IM"]
[WhiteElo "2044"]
[BlackElo "2193"]

1. d4 {[%clk 00:03:03]} Nf6 {[%clk 00:03:02]} {[%emt 00:00:02]} 2. Nf3 {[%clk
00:03:04]} {[%emt 00:00:02]} e6 {[%clk 00:03:03]} {[%emt 00:00:01]} 3. e3
{[%clk 00:03:04]} {[%emt 00:00:02]} b6 {[%clk 00:03:01]} {[%emt 00:00:04]} 4.
Bd3 {[%clk 00:03:05]} Bb7 {[%clk 00:03:02]} {[%emt 00:00:01]} 5. O-O {[%clk
00:03:06]} {[%emt 00:00:02]} Be7 {[%clk 00:03:03]} 6. Nbd2 {[%clk 00:03:07]}
{[%emt 00:00:01]} d5 {[%clk 00:03:04]} 7. Qe2 {[%clk 00:03:07]} {[%emt
00:00:02]} O-O {[%clk 00:03:03]} {[%emt 00:00:02]} 8. e4 {[%clk 00:03:07]}
{[%emt 00:00:02]} dxe4 {[%clk 00:02:57]} {[%emt 00:00:08]} 9. Nxe4 {[%clk
00:03:07]} {[%emt 00:00:01]} Nbd7 {[%clk 00:02:44]} {[%emt 00:00:15]} 10. Bf4
{[%clk 00:02:52]} {[%emt 00:00:18]} Nd5 {[%clk 00:02:36]} {[%emt 00:00:09]} 11.
Bd2 {[%clk 00:02:38]} {[%emt 00:00:16]} Nb4 {[%clk 00:02:32]} {[%emt 00:00:06]}
12. Bxb4 {[%clk 00:02:32]} {[%emt 00:00:09]} Bxb4 {[%clk 00:02:33]} {[%emt
00:00:01]} 13. c3 {[%clk 00:02:33]} {[%emt 00:00:01]} Be7 {[%clk 00:02:33]}
{[%emt 00:00:02]} 14. Rfe1 {[%clk 00:02:27]} {[%emt 00:00:09]} c5 {[%clk
00:02:24]} {[%emt 00:00:11]} 15. dxc5 {[%clk 00:02:10]} {[%emt 00:00:20]} Nxc5
{[%clk 00:02:24]} {[%emt 00:00:02]} 16. Nxc5 {[%emt 00:00:03]} Bxc5 {[%emt
00:00:01]} 17. Rad1 {[%clk 00:02:05]} {[%emt 00:00:02]} Qf6 {[%clk 00:02:02]}
{[%emt 00:00:23]} 18. Be4 {[%clk 00:01:59]} {[%emt 00:00:09]} Bxe4 {[%clk
00:01:42]} {[%emt 00:00:22]} 19. Qxe4 {[%clk 00:02:00]} {[%emt 00:00:01]} Rad8
{[%clk 00:01:43]} {[%emt 00:00:01]} 20. Qe5 {[%clk 00:01:22]} {[%emt 00:00:41]}
Qe7 {[%clk 00:01:25]} {[%emt 00:00:19]} 21. Nd4 {[%clk 00:01:08]} {[%emt
00:00:16]} Bxd4 {[%clk 00:01:05]} {[%emt 00:00:22]} 22. Rxd4 {[%clk 00:01:05]}
{[%emt 00:00:05]} Rxd4 {[%clk 00:01:05]} {[%emt 00:00:02]} 23. Qxd4 {[%clk
00:00:44]} {[%emt 00:00:24]} Rd8 {[%clk 00:01:06]} {[%emt 00:00:01]} 24. Qe3
{[%clk 00:00:43]} {[%emt 00:00:03]} Qd6 {[%clk 00:01:03]} {[%emt 00:00:04]} 25.
g3 {[%clk 00:00:38]} {[%emt 00:00:07]} h6 {[%clk 00:01:02]} {[%emt 00:00:03]}
26. h4 {[%clk 00:00:36]} {[%emt 00:00:05]} Qd2 {[%clk 00:01:00]} {[%emt
00:00:04]} 27. Qe2 {[%clk 00:00:19]} {[%emt 00:00:19]} g6 {[%clk 00:00:50]}
{[%emt 00:00:11]} 28. Kf1 {[%clk 00:00:20]} {[%emt 00:00:02]} Qd5 {[%clk
00:00:50]} {[%emt 00:00:02]} 29. Qe4 {[%clk 00:00:08]} {[%emt 00:00:09]} Qxa2
{[%clk 00:00:48]} {[%emt 00:00:09]} 30. Re2 {[%clk 00:00:09]} {[%emt 00:00:01]}
Rd1+ {[%clk 00:00:42]} {[%emt 00:00:08]} 31. Kg2 {[%clk 00:00:10]} {[%emt
00:00:01]} Qd5 {[%clk 00:00:43]} {[%emt 00:00:01]} 32. Qxd5 {[%clk 00:00:07]}
{[%emt 00:00:05]} Rxd5 {[%clk 00:00:43]} {[%emt 00:00:01]} 33. Kf3 {[%clk
00:00:08]} {[%emt 00:00:02]} Kg7 {[%clk 00:00:43]} {[%emt 00:00:02]} 34. Rc2
{[%clk 00:00:05]} {[%emt 00:00:05]} Kf6 {[%clk 00:00:44]} {[%emt 00:00:02]} 35.
Ke2 {[%clk 00:00:04]} {[%emt 00:00:03]} Ke5 {[%clk 00:00:44]} {[%emt 00:00:01]}
36. f3 {[%clk 00:00:05]} {[%emt 00:00:02]} Kd6 {[%clk 00:00:43]} {[%emt
00:00:03]} 37. Ke3 {[%clk 00:00:06]} {[%emt 00:00:01]} f5 {[%clk 00:00:42]}
{[%emt 00:00:02]} 38. h5 {[%clk 00:00:04]} {[%emt 00:00:04]} g5 {[%clk
00:00:42]} {[%emt 00:00:02]} 39. Rh2 {[%clk 00:00:04]} {[%emt 00:00:03]} Kc5
{[%clk 00:00:42]} {[%emt 00:00:01]} 40. b3 {[%clk 00:00:05]} {[%emt 00:00:01]}
Rd1 {[%clk 00:00:39]} {[%emt 00:00:04]} 41. Ra2 {[%clk 00:00:07]} a5 {[%clk
00:00:39]} {[%emt 00:00:02]} 42. b4+ {[%clk 00:00:08]} {[%emt 00:00:01]} axb4
{[%clk 00:00:38]} {[%emt 00:00:03]} 43. cxb4+ {[%clk 00:00:09]} Kxb4 {[%clk
00:00:38]} {[%emt 00:00:02]} 44. Ra7 {[%clk 00:00:10]} {[%emt 00:00:01]} Rh1
{[%clk 00:00:31]} {[%emt 00:00:08]} 45. g4 {[%clk 00:00:12]} {[%emt 00:00:01]}
Rh3 {[%clk 00:00:24]} {[%emt 00:00:10]} 46. Kf2 {[%clk 00:00:11]} {[%emt
00:00:02]} fxg4 {[%emt 00:00:02]} 47. fxg4 Rh2+ {[%clk 00:00:11]} {[%emt
00:00:14]} 48. Kg3 {[%clk 00:00:14]} {[%emt 00:00:01]} Rd2 {[%clk 00:00:11]}
{[%emt 00:00:02]} 49. Re7 {[%clk 00:00:14]} {[%emt 00:00:02]} Rd3+ {[%clk
00:00:11]} {[%emt 00:00:02]} 50. Kg2 {[%clk 00:00:14]} {[%emt 00:00:01]} Rd6
{[%clk 00:00:12]} 51. Rh7 {[%clk 00:00:16]} {[%emt 00:00:01]} e5 {[%clk
00:00:13]} {[%emt 00:00:01]} 52. Rg7 {[%clk 00:00:16]} {[%emt 00:00:01]} Kc5
{[%clk 00:00:12]} {[%emt 00:00:03]} 53. Rg6 {[%clk 00:00:18]} {[%emt 00:00:01]}
b5 {[%clk 00:00:12]} {[%emt 00:00:01]} 54. Kf3 {[%clk 00:00:19]} b4 {[%clk
00:00:13]} {[%emt 00:00:01]} 55. Ke4 {[%clk 00:00:20]} {[%emt 00:00:02]} b3
{[%clk 00:00:14]} {[%emt 00:00:01]} 56. Kxe5 {[%clk 00:00:20]} {[%emt
00:00:02]} Rb6 {[%clk 00:00:11]} {[%emt 00:00:03]} 57. Ke4 {[%emt 00:00:27]}
Kd5+ {[%emt 00:00:15]} 0-1

[Event "MČR v bleskovém šachu družstev 2019"]
[Site "Teplice, Czech Republic"]
[Date "2019.09.14"]
[Round "13.13"]
[White "Bach, Markus"]
[Black "Bernasek, Jan"]
[Result "0-1"]
[TimeControl "3 mim. + 2 s"]
[BlackTitle "GM"]
[WhiteFideId "24603376"]
[BlackFideId "311995"]
[WhiteElo "2259"]
[BlackElo "2526"]

1. d4 {[%clk 00:03:02]} Nf6 {[%clk 00:03:03]} {[%emt 00:00:02]} 2. Nf3 {[%clk
00:03:01]} {[%emt 00:00:02]} e6 {[%clk 00:03:04]} {[%emt 00:00:02]} 3. g3
{[%clk 00:03:01]} {[%emt 00:00:02]} c5 {[%clk 00:03:05]} {[%emt 00:00:02]} 4.
Bg2 {[%clk 00:03:01]} Nc6 {[%clk 00:03:04]} {[%emt 00:00:03]} 5. O-O {[%clk
00:03:00]} {[%emt 00:00:03]} b6 {[%clk 00:03:00]} {[%emt 00:00:06]} 6. c4
{[%clk 00:03:00]} {[%emt 00:00:02]} cxd4 {[%clk 00:02:55]} {[%emt 00:00:06]} 7.
Nxd4 {[%clk 00:03:00]} {[%emt 00:00:02]} Bb7 {[%clk 00:02:57]} 8. Nxc6 {[%clk
00:02:36]} {[%emt 00:00:27]} Bxc6 {[%clk 00:02:56]} {[%emt 00:00:03]} 9. Bxc6
{[%clk 00:02:35]} {[%emt 00:00:02]} dxc6 {[%clk 00:02:57]} 10. Qxd8+ {[%clk
00:02:36]} {[%emt 00:00:02]} Rxd8 {[%clk 00:02:57]} {[%emt 00:00:01]} 11. Bg5
{[%clk 00:02:37]} Be7 {[%clk 00:02:57]} {[%emt 00:00:03]} 12. Nc3 {[%clk
00:02:39]} {[%emt 00:00:01]} h6 {[%clk 00:02:50]} {[%emt 00:00:08]} 13. Bf4
{[%clk 00:02:39]} {[%emt 00:00:02]} Bb4 {[%clk 00:02:29]} {[%emt 00:00:23]} 14.
Rac1 {[%clk 00:02:23]} {[%emt 00:00:18]} Ke7 {[%clk 00:02:30]} {[%emt
00:00:01]} 15. a3 {[%clk 00:02:24]} {[%emt 00:00:01]} Bc5 {[%clk 00:02:24]}
{[%emt 00:00:07]} 16. Rfd1 {[%clk 00:02:18]} {[%emt 00:00:08]} Bd4 {[%clk
00:02:21]} {[%emt 00:00:05]} 17. Bd2 {[%clk 00:02:04]} {[%emt 00:00:16]} Rd7
{[%clk 00:02:16]} {[%emt 00:00:07]} 18. e3 {[%clk 00:02:05]} Be5 {[%clk
00:02:15]} {[%emt 00:00:03]} 19. f4 {[%clk 00:01:55]} {[%emt 00:00:12]} Bd6
{[%clk 00:02:13]} {[%emt 00:00:04]} 20. Kg2 {[%clk 00:01:43]} {[%emt 00:00:14]}
Rhd8 {[%clk 00:02:11]} {[%emt 00:00:03]} 21. Be1 {[%clk 00:01:26]} {[%emt
00:00:19]} Bc5 {[%clk 00:02:05]} {[%emt 00:00:08]} 22. Rxd7+ {[%clk 00:01:23]}
{[%emt 00:00:04]} Rxd7 {[%clk 00:02:06]} {[%emt 00:00:02]} 23. Kf3 {[%clk
00:01:19]} {[%emt 00:00:06]} Rd3 {[%clk 00:01:58]} {[%emt 00:00:10]} 24. Bf2
{[%clk 00:01:20]} {[%emt 00:00:01]} Rd2 {[%clk 00:01:56]} {[%emt 00:00:03]} 25.
Na4 {[%clk 00:01:15]} {[%emt 00:00:07]} e5 {[%clk 00:01:46]} {[%emt 00:00:13]}
26. Nxc5 {[%clk 00:00:46]} {[%emt 00:00:31]} bxc5 {[%clk 00:01:46]} 27. fxe5
{[%clk 00:00:47]} Nd7 {[%emt 00:00:03]} 28. Be1 Rxb2 {[%clk 00:01:43]} {[%emt
00:00:05]} 29. Bc3 {[%clk 00:00:50]} {[%emt 00:00:01]} Rxh2 {[%clk 00:01:42]}
{[%emt 00:00:03]} 30. Rb1 {[%clk 00:00:51]} Rc2 {[%clk 00:01:40]} {[%emt
00:00:04]} 31. Rb3 {[%clk 00:00:51]} {[%emt 00:00:02]} Nb6 {[%clk 00:01:34]}
{[%emt 00:00:08]} 32. Ke4 {[%clk 00:00:47]} {[%emt 00:00:06]} Ke6 {[%clk
00:01:32]} {[%emt 00:00:04]} 33. Kd3 {[%clk 00:00:37]} {[%emt 00:00:12]} Ra2
{[%clk 00:01:31]} {[%emt 00:00:02]} 34. Bb2 {[%clk 00:00:37]} {[%emt 00:00:02]}
Na4 {[%clk 00:01:28]} {[%emt 00:00:05]} 35. Bc1 {[%clk 00:00:35]} {[%emt
00:00:05]} Nb6 {[%clk 00:01:14]} {[%emt 00:00:16]} 36. Bb2 {[%clk 00:00:36]} h5
{[%clk 00:01:15]} {[%emt 00:00:01]} 37. Kc2 {[%clk 00:00:25]} {[%emt 00:00:14]}
Nxc4 {[%clk 00:01:13]} {[%emt 00:00:03]} 0-1

[Event "MČR v bleskovém šachu družstev 2019"]
[Site "Teplice, Czech Republic"]
[Date "2019.09.14"]
[Round "13.15"]
[White "Tresnak, Filip"]
[Black "Vrbata, Zbynek"]
[Result "0-1"]
[TimeControl "3 mim. + 2 s"]
[BlackTitle "FM"]
[WhiteFideId "333905"]
[BlackFideId "301256"]
[WhiteElo "1931"]
[BlackElo "2324"]

1. e4 {[%emt 00:10:28]} e6 {[%emt 00:00:01]} 2. d4 {[%emt 00:00:03]} d5 3. e5
{[%emt 00:00:02]} Qd7 {[%emt 00:00:02]} 4. Bd3 {[%emt 00:00:05]} b6 {[%emt
00:00:01]} 5. Ne2 {[%emt 00:00:02]} Ba6 {[%emt 00:00:02]} 6. O-O {[%emt
00:00:05]} Bxd3 {[%emt 00:00:06]} 7. Qxd3 Ne7 {[%emt 00:00:02]} 8. Be3 {[%emt
00:00:10]} Nf5 {[%emt 00:00:05]} 9. c3 {[%emt 00:00:04]} Be7 {[%emt 00:00:02]}
10. Nd2 {[%emt 00:00:07]} O-O {[%emt 00:00:04]} 11. b4 {[%emt 00:00:08]} a5
{[%emt 00:00:19]} 12. a3 {[%emt 00:00:07]} a4 {[%emt 00:00:03]} 13. f4 {[%emt
00:00:12]} c5 {[%emt 00:00:13]} 14. bxc5 {[%emt 00:00:07]} bxc5 {[%emt
00:00:02]} 15. c4 {[%emt 00:00:09]} cxd4 {[%emt 00:00:09]} 16. Nxd4 {[%emt
00:00:04]} dxc4 {[%emt 00:00:10]} 17. Nxc4 {[%emt 00:00:08]} Nc6 {[%emt
00:00:08]} 18. Nb6 {[%emt 00:00:22]} Qd8 {[%emt 00:00:10]} 19. Nxa8 {[%emt
00:00:05]} Ncxd4 {[%emt 00:00:09]} 20. Bxd4 {[%emt 00:00:09]} Nxd4 {[%emt
00:00:07]} 21. Rac1 {[%emt 00:00:13]} Nb3 {[%emt 00:00:15]} 22. Rcd1 {[%emt
00:00:27]} Qxa8 {[%emt 00:00:05]} 23. Qd7 {[%emt 00:00:07]} Bxa3 {[%emt
00:00:04]} 24. Rde1 {[%emt 00:00:12]} Bc5+ {[%emt 00:00:06]} 25. Kh1 a3 {[%emt
00:00:02]} 26. Qb5 {[%emt 00:00:13]} Rb8 {[%emt 00:00:02]} 27. Qe2 {[%emt
00:00:09]} a2 {[%emt 00:00:02]} 28. Qc2 {[%emt 00:00:10]} Bd4 {[%emt 00:00:05]}
29. Rd1 {[%emt 00:00:09]} a1=Q {[%emt 00:00:05]} 30. Rxa1 {[%emt 00:00:02]}
Nxa1 {[%emt 00:00:02]} 31. Qd2 {[%emt 00:00:06]} Rb2 {[%emt 00:00:03]} 0-1

[Event "MČR v bleskovém šachu družstev 2019"]
[Site "Teplice, Czech Republic"]
[Date "2019.09.14"]
[Round "13.16"]
[White "Kuba, Jindrich"]
[Black "Prudek, Jiri"]
[Result "1-0"]
[TimeControl "3 mim. + 2 s"]
[WhiteTitle "FM"]
[WhiteFideId "318248"]
[BlackFideId "327310"]
[WhiteElo "2223"]
[BlackElo "1962"]

1. e4 {[%clk 00:03:03]} c5 {[%clk 00:03:03]} {[%emt 00:00:01]} 2. Nf3 {[%clk
00:03:04]} e6 {[%clk 00:03:04]} 3. d4 {[%clk 00:03:05]} {[%emt 00:00:01]} cxd4
{[%clk 00:03:05]} {[%emt 00:00:02]} 4. Nxd4 {[%clk 00:03:06]} a6 {[%clk
00:03:06]} 5. Bd3 {[%clk 00:03:06]} {[%emt 00:00:02]} Qc7 {[%clk 00:03:06]}
{[%emt 00:00:02]} 6. O-O {[%clk 00:03:06]} {[%emt 00:00:03]} Bd6 {[%clk
00:03:05]} {[%emt 00:00:04]} 7. Nf3 {[%clk 00:03:02]} {[%emt 00:00:05]} Nc6
{[%clk 00:03:00]} {[%emt 00:00:06]} 8. h3 {[%clk 00:02:52]} {[%emt 00:00:12]}
Nf6 {[%clk 00:02:49]} {[%emt 00:00:13]} 9. Nc3 {[%clk 00:02:52]} {[%emt
00:00:02]} Ne5 {[%clk 00:02:45]} {[%emt 00:00:06]} 10. Nxe5 {[%clk 00:02:46]}
{[%emt 00:00:09]} Bxe5 {[%clk 00:02:46]} 11. Ne2 {[%clk 00:02:47]} {[%emt
00:00:01]} Qb6 {[%clk 00:02:32]} {[%emt 00:00:15]} 12. Kh1 {[%clk 00:02:41]}
{[%emt 00:00:08]} O-O {[%clk 00:02:16]} {[%emt 00:00:19]} 13. f4 {[%clk
00:02:42]} Bb8 {[%clk 00:02:00]} {[%emt 00:00:18]} 14. b3 {[%clk 00:02:40]}
{[%emt 00:00:04]} d5 {[%clk 00:01:51]} {[%emt 00:00:10]} 15. exd5 {[%clk
00:02:34]} {[%emt 00:00:08]} Nxd5 {[%clk 00:01:46]} {[%emt 00:00:08]} 16. Rf3
{[%clk 00:02:10]} {[%emt 00:00:26]} Qc7 {[%clk 00:01:27]} {[%emt 00:00:21]} 17.
c4 {[%clk 00:02:04]} {[%emt 00:00:09]} Ne7 {[%clk 00:01:20]} {[%emt 00:00:08]}
18. Bb2 {[%clk 00:02:03]} {[%emt 00:00:03]} Ng6 {[%clk 00:01:14]} {[%emt
00:00:09]} 19. Qc2 {[%clk 00:01:58]} {[%emt 00:00:07]} b5 {[%clk 00:00:21]}
{[%emt 00:00:55]} 20. Be4 {[%clk 00:01:40]} {[%emt 00:00:20]} Bb7 {[%clk
00:00:19]} {[%emt 00:00:03]} 21. Bxb7 {[%clk 00:01:40]} {[%emt 00:00:03]} Qxb7
{[%clk 00:00:20]} 22. c5 {[%clk 00:01:32]} {[%emt 00:00:09]} a5 {[%clk
00:00:07]} {[%emt 00:00:16]} 23. Qc3 {[%clk 00:01:29]} {[%emt 00:00:05]} f6
{[%clk 00:00:05]} {[%emt 00:00:04]} 24. a3 {[%clk 00:01:29]} {[%emt 00:00:02]}
Qd5 {[%clk 00:00:00]} {[%emt 00:00:04]} 25. Qd3 {[%clk 00:01:29]} {[%emt
00:00:14]} 1-0